bitfinex-derivatives/quotes_ETHF0:USTF0_20250417
["timestamp","ask_amount","ask_price","bid_price","bid_amount"]
[1744862213747,7.94479955,1585.2,1585.1,1.26178]
[1744862244675,1.6344,1585.2,1585.1,1.26178]
[1744862245677,7.94479955,1585.2,1585.1,1.26178]
[1744862248075,17.94479955,1585.2,1585.1,1.26178]
[1744862251075,1.96e-06,1585.3,1585.0,1.68688196]
[1744862251280,1.96e-06,1585.3,1585.2,1.26177]
[1744862251469,1.96e-06,1585.3,1585.2,3.93327]
[1744862251774,1.96e-06,1585.3,1585.2,8.18827]
[1744862254182,1.96e-06,1585.3,1585.2,31.07523032]
[1744862254383,1.96e-06,1585.3,1585.2,36.07523032]
[1744862254983,1.96e-06,1585.3,1585.2,31.07523032]
[1744862255985,1.96e-06,1585.3,1585.2,35.36136558]
[1744862256485,1.6533,1585.5,1585.4,1.26161]
[1744862256676,11.6533,1585.5,1585.4,1.26161]
[1744862256876,17.96369955,1585.5,1585.4,2.96561]
[1744862257290,0.8823,1585.6,1585.5,1.26153]
[1744862257485,18.88299955,1585.6,1585.5,2.96553]
[1744862261383,8.88299955,1585.6,1585.5,2.96553]
[1744862261678,18.88299955,1585.6,1585.5,7.21653]
[1744862261993,18.88299955,1585.6,1585.5,5.51253]
[1744862262384,18.88299955,1585.6,1585.5,1.26153]
[1744862266900,8.88299955,1585.6,1585.5,1.26153]
[1744862267087,8.88299955,1585.6,1585.5,2.99923]
[1744862267286,8.88299955,1585.6,1585.5,1.26153]
[1744862267494,18.88299955,1585.6,1585.5,1.26153]
[1744862281606,8.88299955,1585.6,1585.5,1.26153]
[1744862285806,8.88299955,1585.6,1585.5,2.87043]
[1744862291309,18.88299955,1585.6,1585.5,1.26153]
[1744862300924,22.09079955,1585.6,1585.4,1.26155]
[1744862301123,7.97779955,1585.5,1585.4,1.26155]
[1744862301626,17.97779955,1585.5,1585.4,1.26155]
[1744862302119,11.6674,1585.5,1585.4,1.26155]
[1744862302425,17.97779955,1585.5,1585.4,1.26155]
[1744862303330,17.97779955,1585.5,1585.2,22.30888378]
[1744862303623,17.97779955,1585.5,1585.2,21.04712378]
[1744862303624,12.11059955,1585.4,1585.2,21.04712378]
[1744862303832,2.5594,1585.3,1585.2,9.68055951]
[1744862304129,8.86979955,1585.3,1585.2,9.68055951]
[1744862307026,6.31039955,1585.3,1585.2,14.56795951]
[1744862307328,6.31039955,1585.3,1585.2,15.51995951]
[1744862308529,6.31039955,1585.3,1585.2,7.10111]
[1744862309229,3.4129,1585.5,1585.4,1.26161]
[1744862309633,9.72329955,1585.5,1585.4,1.26161]
[1744862310021,9.72329955,1585.5,1585.3,3.01923]
[1744862310220,8.02709955,1585.4,1585.3,3.01923]
[1744862313537,8.02709955,1585.4,1585.3,1.7576]
[1744862313733,8.02709955,1585.4,1585.2,1.26171]
[1744862314034,1.6087,1585.3,1585.2,1.26171]
[1744862314232,1.6087,1585.3,1585.2,7.25531]
[1744862316336,1.7731,1585.5,1585.4,1.26161]
[1744862316527,13.5355,1585.5,1585.4,1.26161]
[1744862316724,19.84589955,1585.5,1585.4,1.26161]
[1744862318139,19.84589955,1585.5,1585.3,2.96702]
[1744862318338,8.05829955,1585.4,1585.3,2.96702]
[1744862325342,18.05829955,1585.4,1585.3,2.96702]
[1744862330341,0.9028,1585.5,1585.4,1.26161]
[1744862330541,7.21319955,1585.5,1585.4,1.26161]
[1744862332044,8.80369955,1585.5,1585.4,1.26161]
[1744862332545,18.80369955,1585.5,1585.4,1.26161]
[1744862334045,0.8861,1585.6,1585.5,1.26153]
[1744862334241,2.6156,1585.8,1585.7,1.26137]
[1744862334444,2.60636145,1585.8,1585.7,1.26137]
[1744862334639,18.916761,1585.8,1585.7,1.26137]
[1744862336040,18.916761,1585.8,1585.6,1.26139]
[1744862336346,8.90899955,1585.7,1585.6,1.26139]
[1744862336545,8.90899955,1585.7,1585.6,1.25215145]
[1744862336745,18.90899955,1585.7,1585.6,1.25215145]
[1744862338545,8.90899955,1585.7,1585.6,1.25215145]
[1744862338741,8.90899955,1585.7,1585.6,2.96355145]
[1744862342453,8.90899955,1585.7,1585.6,1.25215145]
[1744862344053,18.90899955,1585.7,1585.6,1.25215145]
[1744862344650,8.90899955,1585.7,1585.6,1.25215145]
[1744862344847,8.90899955,1585.7,1585.6,2.87005145]
[1744862347457,18.90899955,1585.7,1585.6,1.25215145]
[1744862356152,16.31039955,1585.7,1585.6,1.25215145]
[1744862356353,4.75899955,1585.7,1585.6,1.25215145]
[1744862356758,4.75899955,1585.7,1585.6,2.88075145]
[1744862358163,0.8442,1585.9,1585.8,1.26129]
[1744862358468,1.6771,1586.0,1585.9,1.27044855]
[1744862358671,2.5287,1586.0,1585.9,3.00604855]
[1744862358964,2.51946145,1586.0,1585.9,3.51199939]
[1744862359162,2.51946145,1586.0,1585.9,2.99681]
[1744862365468,2.51946145,1586.0,1585.9,6.20461]
[1744862368565,12.51946145,1586.0,1585.8,1.27073196]
[1744862368764,1.7293,1585.9,1585.8,1.27073196]
[1744862369170,11.7293,1585.9,1585.8,1.27073196]
[1744862372475,11.7293,1585.9,1585.8,0.00948196]
[1744862372871,11.7293,1585.9,1585.8,1.27077196]
[1744862375276,10.0,1585.9,1585.8,1.27077196]
[1744862375475,10.0,1585.9,1585.8,0.00948196]
[1744862375677,18.2078,1585.9,1585.8,0.00948196]
[1744862375877,19.46901,1585.9,1585.8,0.00948196]
[1744862376178,19.46908,1585.9,1585.5,1.26148]
[1744862376379,3.2078,1585.7,1585.5,1.26148]
[1744862376566,3.2078,1585.7,1585.5,1.25224145]
[1744862376767,13.2078,1585.7,1585.5,1.25224145]
[1744862376967,13.2078,1585.7,1585.4,32.41852315]
[1744862377174,13.2078,1585.7,1585.5,1.26152]
[1744862377376,13.2078,1585.7,1585.4,32.41850315]
[1744862377671,13.2078,1585.7,1585.5,1.26152]
[1744862379381,0.8187,1585.6,1585.4,28.18252315]
[1744862379572,0.8167,1585.5,1585.4,7.12704196]
[1744862379772,0.8167,1585.5,1585.4,1.27104196]
[1744862385783,2.4576,1585.5,1585.4,1.27104196]
[1744862385987,12.4576,1585.5,1585.4,1.27104196]
[1744862386283,12.4576,1585.5,1585.4,2.97224196]
[1744862388980,12.4576,1585.5,1585.4,1.71068196]
[1744862389381,12.4576,1585.5,1585.4,2.97229196]
[1744862389776,2.4576,1585.5,1585.4,2.97229196]
[1744862393087,0.8187,1585.6,1585.4,1.71068196]
[1744862393387,5.657,1585.7,1585.6,1.26145]
[1744862393583,3.2508,1585.7,1585.6,1.26145]
[1744862394075,13.2508,1585.7,1585.6,1.26145]
[1744862397590,16.4586,1585.7,1585.4,0.00948196]
[1744862397791,3.2078,1585.5,1585.4,0.00948196]
[1744862398296,14.8008,1585.5,1585.4,0.00948196]
[1744862398490,19.8008,1585.5,1585.4,0.00948196]
[1744862398701,21.06233,1585.5,1585.4,0.00948196]
[1744862398891,19.8008,1585.5,1585.4,0.00948196]
[1744862401207,21.06233,1585.5,1585.4,0.00948196]
[1744862401899,14.8008,1585.5,1585.4,0.00948196]
[1744862403407,16.06233,1585.5,1585.4,0.00948196]
[1744862404405,14.8008,1585.5,1585.4,1.27109196]
[1744862405198,16.06233,1585.5,1585.4,0.00948196]
[1744862405809,14.8008,1585.5,1585.4,1.27109196]
[1744862407301,11.593,1585.5,1585.4,1.27109196]
[1744862408811,11.593,1585.5,1585.4,0.00948196]
[1744862409309,1.593,1585.5,1585.4,1.27109196]
[1744862410199,1.593,1585.5,1585.4,0.00948196]
[1744862410400,1.593,1585.5,1585.4,1.27109196]
[1744862411409,11.593,1585.5,1585.4,0.00948196]
[1744862411614,11.593,1585.5,1585.4,1.27109196]
[1744862412105,11.593,1585.5,1585.4,0.00948196]
[1744862412307,16.06233,1585.5,1585.4,0.00948196]
[1744862412714,14.8008,1585.5,1585.4,0.00948196]
[1744862413315,14.8008,1585.5,1585.4,1.27109196]
[1744862413614,1.593,1585.5,1585.4,1.27109196]
[1744862414117,1.593,1585.5,1585.4,0.00948196]
[1744862414909,1.593,1585.5,1585.4,1.27109196]
[1744862418117,11.593,1585.5,1585.4,1.27109196]
[1744862420408,14.8008,1585.5,1585.4,0.00948196]
[1744862420818,15.6552,1585.5,1585.4,0.00948196]
[1744862421303,15.6552,1585.5,1585.4,1.27109196]
[1744862425116,15.6552,1585.5,1585.4,0.00948196]
[1744862425316,15.6552,1585.5,1585.4,1.27109196]
[1744862426312,12.4474,1585.5,1585.4,1.27109196]
[1744862426519,15.6552,1585.5,1585.4,1.27109196]
[1744862427315,10.0277,1585.7,1585.4,0.00948196]
[1744862427516,9.3606,1585.7,1585.6,1.26145]
[1744862428121,8.5647,1585.7,1585.6,1.26145]
[1744862428325,6.8199,1585.7,1585.6,1.26145]
[1744862428513,5.99,1585.7,1585.6,2.89235]
[1744862429621,0.00948196,1585.8,1585.7,1.26137]
[1744862429916,0.00024341,1585.8,1585.7,1.26137]
[1744862431623,11.26158341,1585.8,1585.5,1.26151]
[1744862431826,3.2078,1585.7,1585.5,1.25227145]
[1744862432022,0.7962,1585.6,1585.5,1.25227145]
[1744862432218,3.4093,1585.6,1585.5,1.25227145]
[1744862432411,13.4093,1585.6,1585.5,1.25227145]
[1744862433623,13.4093,1585.6,1585.5,2.90017145]
[1744862435125,13.4093,1585.6,1585.5,1.25227145]
[1744862435324,13.4093,1585.6,1585.4,2.91893196]
[1744862435530,13.4093,1585.6,1585.4,1.27109196]
[1744862435531,1.6678,1585.5,1585.4,1.27109196]
[1744862439529,4.8756,1585.5,1585.4,1.27109196]
[1744862439922,4.8756,1585.5,1585.4,0.00948196]
[1744862440228,4.8756,1585.5,1585.4,1.27109196]
[1744862441522,14.8756,1585.5,1585.4,1.27109196]
[1744862441827,14.8756,1585.5,1585.4,0.00948196]
[1744862442829,14.8756,1585.5,1585.4,1.27109196]
[1744862444526,16.13713,1585.5,1585.4,0.00948196]
[1744862445828,14.8756,1585.5,1585.4,1.27109196]
[1744862446324,11.6678,1585.5,1585.4,1.27109196]
[1744862446530,1.6678,1585.5,1585.4,1.27109196]
[1744862448733,11.6678,1585.5,1585.4,1.27109196]
[1744862448928,14.8756,1585.5,1585.4,1.27109196]
[1744862451335,1.6678,1585.5,1585.4,1.27109196]
[1744862451734,1.6678,1585.5,1585.4,3.01429196]
[1744862455036,14.8756,1585.5,1585.4,0.00948196]
[1744862455336,14.8756,1585.5,1585.4,1.27109196]
[1744862456632,11.6678,1585.5,1585.4,1.27109196]
[1744862460440,1.6621,1585.6,1585.5,1.26153]
[1744862460631,11.6621,1585.6,1585.5,2.97953]
[1744862461135,13.3013,1585.6,1585.5,2.97953]
[1744862461438,13.3013,1585.6,1585.4,1.27104196]
[1744862461734,1.6392,1585.5,1585.4,1.27104196]
[1744862461934,0.7962,1585.6,1585.5,1.26153]
[1744862462236,0.00024341,1585.8,1585.7,1.26137]
[1744862462438,11.49885806,1585.9,1585.8,1.27028514]
[1744862462740,13.2078,1585.9,1585.8,1.27028514]
[1744862463041,3.19880486,1585.9,1585.8,1.26129]
[1744862463938,9.93025806,1586.0,1585.9,1.26121]
[1744862464140,19.93025806,1586.0,1585.9,1.26121]
[1744862465227,8.29105806,1586.0,1585.9,1.26121]
[1744862466639,3.2455,1586.1,1586.0,1.26113]
[1744862469938,13.2455,1586.1,1586.0,1.26113]
[1744862471338,3.2455,1586.1,1586.0,1.26113]
[1744862472035,3.2455,1586.1,1586.0,2.87073]
[1744862476740,6.4533,1586.1,1585.9,2.06996]
[1744862477044,1.6376,1586.0,1585.9,1.26116]
[1744862478131,11.6376,1586.0,1585.7,3.2078]
[1744862478338,4.0849,1585.9,1585.5,8.42720692]
[1744862478643,3.2078,1585.7,1585.5,8.42720692]
[1744862478939,2.5147,1585.6,1585.5,8.41796837]
[1744862479149,3.77615,1585.6,1585.5,8.41796837]
[1744862479346,18.77615,1585.6,1585.5,8.41796837]
[1744862480547,18.77615,1585.6,1585.4,1.27109196]
[1744862480739,4.8577,1585.5,1585.4,1.27109196]
[1744862481140,14.8577,1585.5,1585.4,1.27109196]
[1744862481644,21.11923,1585.5,1585.4,0.00948196]
[1744862481845,19.8577,1585.5,1585.4,0.00948196]
[1744862482251,21.11923,1585.5,1585.4,0.00948196]
[1744862482450,16.11923,1585.5,1585.4,0.00948196]
[1744862483146,14.8577,1585.5,1585.4,1.27109196]
[1744862484150,14.8577,1585.5,1585.4,0.00948196]
[1744862484638,16.11923,1585.5,1585.4,0.00948196]
[1744862485249,22.10923,1585.5,1585.4,0.00948196]
[1744862486546,20.8477,1585.5,1585.4,0.00948196]
[1744862486850,10.8477,1585.5,1585.4,0.00948196]
[1744862487255,12.10923,1585.5,1585.4,0.00948196]
[1744862491154,6.11923,1585.5,1585.4,0.00948196]
[1744862491862,6.11923,1585.5,1585.4,1.27109196]
[1744862492049,6.98513,1585.5,1585.4,1.27109196]
[1744862492252,6.98513,1585.5,1585.4,0.00948196]
[1744862493758,6.98513,1585.5,1585.4,1.27109196]
[1744862494364,5.7236,1585.5,1585.4,1.27109196]
[1744862494559,6.98513,1585.5,1585.4,1.27109196]
[1744862495060,5.7236,1585.5,1585.4,1.27109196]
[1744862495356,6.98513,1585.5,1585.4,0.00948196]
[1744862495559,16.98513,1585.5,1585.4,0.00948196]
[1744862503372,5.7236,1585.5,1585.4,1.27109196]
[1744862504373,6.98513,1585.5,1585.4,0.00948196]
[1744862505070,6.98513,1585.5,1585.4,1.27109196]
[1744862505265,6.98513,1585.5,1585.4,0.00948196]
[1744862505463,5.7236,1585.5,1585.4,1.27109196]
[1744862506574,6.98513,1585.5,1585.4,1.27109196]
[1744862507176,6.98513,1585.5,1585.4,0.00948196]
[1744862507376,5.7236,1585.5,1585.4,1.27109196]
[1744862507972,6.98513,1585.5,1585.4,1.27109196]
[1744862508975,5.7236,1585.5,1585.4,1.27109196]
[1744862509876,6.98513,1585.5,1585.4,1.27109196]
[1744862510279,5.7236,1585.5,1585.4,1.27109196]
[1744862513077,0.8771,1585.6,1585.4,1.27109196]
[1744862513282,11.7752,1585.7,1585.6,1.26145]
[1744862514081,11.7752,1585.7,1585.6,2.87955]
[1744862514671,5.7852,1585.7,1585.6,2.87955]
[1744862518479,5.7852,1585.7,1585.6,1.6181]
[1744862518683,5.7852,1585.7,1585.6,2.87955]
[1744862519784,7.04657,1585.7,1585.5,1.26147]
[1744862519983,2.4055,1585.6,1585.5,1.26147]
[1744862520388,12.4055,1585.6,1585.5,1.26147]
[1744862521080,12.4055,1585.6,1585.5,1.26153]
[1744862522687,2.4055,1585.6,1585.5,1.26153]
[1744862533291,12.4055,1585.6,1585.5,1.26153]
[1744862533495,2.4055,1585.6,1585.5,1.26153]
[1744862536091,4.076,1585.7,1585.6,1.26145]
[1744862536693,4.076,1585.7,1585.6,2.95145]
[1744862537503,5.7777,1585.7,1585.6,1.26145]
[1744862537803,15.7777,1585.7,1585.5,1.26147]
[1744862538101,2.547,1585.6,1585.5,1.26147]
[1744862538997,1.26153,1585.5,1585.4,0.00948196]
[1744862539198,6.17103,1585.5,1585.4,0.00948196]
[1744862539397,16.17103,1585.5,1585.4,0.00948196]
[1744862540002,14.9095,1585.5,1585.4,0.00948196]
[1744862540192,16.17103,1585.5,1585.4,0.00948196]
[1744862543900,22.16103,1585.5,1585.4,0.00948196]
[1744862546309,18.95323,1585.5,1585.4,0.00948196]
[1744862546606,22.16103,1585.5,1585.4,0.00948196]
[1744862553112,25.8995,1585.5,1584.9,1.26197]
[1744862553412,3.2078,1585.1,1584.9,1.26197]
[1744862553617,2.4837,1585.0,1584.9,1.26197]
[1744862553807,3.74563,1585.0,1584.8,15.60839427]
[1744862554009,1.6174,1584.9,1584.8,15.60839427]
[1744862554206,2.87941,1584.9,1584.8,12.62827427]
[1744862554612,12.87941,1584.9,1584.8,12.62827427]
[1744862555121,16.08721,1584.9,1584.8,12.62827427]
[1744862555615,20.31021,1584.9,1584.8,12.62827427]
[1744862556112,26.30021,1584.9,1584.8,12.62827427]
[1744862556318,27.14291,1584.9,1584.8,12.62827427]
[1744862557718,1.26208,1584.8,1584.7,0.00948196]
[1744862557918,2.92198,1584.8,1584.7,0.00948196]
[1744862558116,12.92198,1584.8,1584.7,0.00948196]
[1744862558916,11.6599,1584.8,1584.7,1.27164196]
[1744862559720,12.92198,1584.8,1584.7,0.00948196]
[1744862560323,1.6599,1584.8,1584.7,0.00948196]
[1744862560616,3.2078,1584.9,1584.8,1.26208]
[1744862560809,3.2078,1584.9,1584.8,3.81948]
[1744862561716,0.00948196,1585.0,1584.9,1.26201]
[1744862561913,0.00948196,1585.0,1584.9,2.86351]
[1744862563013,1e-08,1585.0,1584.9,12.08451]
[1744862563317,8.28077612,1585.3,1585.2,1.26177]
[1744862563618,14.74337612,1585.8,1585.6,1.26142]
[1744862563815,24.73413757,1585.8,1585.6,1.26142]
[1744862564017,25.99543757,1585.8,1585.5,1.26147]
[1744862564219,1.5978,1585.7,1585.6,2.85371145]
[1744862565819,13.13633757,1585.8,1585.7,1.26137]
[1744862566022,24.85189902,1585.8,1585.7,1.26137]
[1744862566216,10.81927612,1585.8,1585.4,0.50826029]
[1744862566412,10.81927612,1585.8,1585.4,3.20804341]
[1744862567121,10.81927612,1585.8,1585.7,1.26137]
[1744862567324,10.81003757,1585.8,1585.7,1.26137]
[1744862568024,2.52926145,1585.8,1585.7,1.26137]
[1744862574920,0.00924051,1585.9,1585.8,1.26129]
[1744862575622,0.00924051,1585.9,1585.8,2.92639]
[1744862576422,0.00924051,1585.9,1585.8,7.14639]
[1744862579421,0.00924051,1585.9,1585.8,1.26129]
[1744862579622,0.00924051,1585.9,1585.7,3.2078]
[1744862579817,0.00924051,1585.9,1585.8,1.6271]
[1744862580028,1.73744051,1585.9,1585.8,2.88839]
[1744862581531,11.73744051,1585.9,1585.8,1.6271]
[1744862581737,14.94524051,1585.9,1585.6,7.5868]
[1744862582031,1.7282,1585.8,1585.7,2.99217]
[1744862583430,11.7282,1585.8,1585.6,1.26141]
[1744862583630,3.2078,1585.7,1585.5,1.26146]
[1744862583838,1.7289,1585.6,1585.5,1.25222145]
[1744862584337,11.7289,1585.6,1585.5,1.25222145]
[1744862585330,11.7289,1585.6,1585.4,1.26179341]
[1744862585539,6.5513,1585.5,1585.4,1.26179341]
[1744862586033,16.5513,1585.5,1585.4,1.26179341]
[1744862586542,3.3435,1585.5,1585.4,1.26179341]
[1744862589640,13.3435,1585.5,1585.4,0.00024341]
[1744862590137,13.3435,1585.5,1585.4,1.26185341]
[1744862590335,13.3435,1585.5,1585.4,0.00024341]
[1744862590537,13.3435,1585.5,1585.4,1.26185341]
[1744862590935,16.5513,1585.5,1585.4,1.26185341]
[1744862591134,16.5513,1585.5,1585.4,0.00024341]
[1744862591335,16.5513,1585.5,1585.4,1.26185341]
[1744862593545,13.3435,1585.5,1585.4,1.26185341]
[1744862594942,3.3435,1585.5,1585.4,1.26185341]
[1744862596340,6.5513,1585.5,1585.4,1.26185341]
[1744862596942,16.5513,1585.5,1585.4,1.26185341]
[1744862598938,13.3435,1585.5,1585.4,1.26185341]
[1744862599743,0.00924051,1585.9,1585.8,1.26129]
[1744862599744,3.21704051,1585.9,1585.8,1.26129]
[1744862599936,10.00000196,1585.9,1585.8,1.26129]
[1744862601446,1.96e-06,1585.9,1585.8,1.26129]
[1744862601642,1.96e-06,1585.9,1585.8,2.90479]
[1744862606449,1.96e-06,1585.9,1585.8,2.92969]
[1744862608950,1.96e-06,1585.9,1585.8,2.90479]
[1744862611351,10.87170196,1585.9,1585.8,1.26129]
[1744862611943,10.87170196,1585.9,1585.8,3.00459]
[1744862615851,1.96e-06,1585.9,1585.8,6.21239]
[1744862616148,1.96e-06,1585.9,1585.8,6.23729]
[1744862618357,1.96e-06,1585.9,1585.8,3.02949]
[1744862618571,1.96e-06,1585.9,1585.8,3.00459]
[1744862624367,1.96e-06,1585.9,1585.8,6.21239]
[1744862625762,1.96e-06,1585.9,1585.8,3.00459]
[1744862627267,1.96e-06,1585.9,1585.8,6.21239]
[1744862629460,1.5997,1586.1,1585.8,6.21239]
[1744862629461,5.6864,1586.5,1586.4,1.26081]
[1744862629660,6.4844,1586.5,1586.4,1.26081]
[1744862629960,16.4844,1586.5,1586.4,1.26081]
[1744862630262,13.2766,1586.5,1586.4,1.26081]
[1744862633271,21.4844,1586.5,1586.3,1.27033196]
[1744862633470,1.7289,1586.4,1586.3,1.27033196]
[1744862633865,11.7289,1586.4,1586.3,1.27033196]
[1744862637871,1.7289,1586.4,1586.3,1.27033196]
[1744862638173,1.6172,1586.5,1586.4,1.26081]
[1744862638566,1.6172,1586.5,1586.4,3.00851]
[1744862640374,1.6172,1586.5,1586.4,1.26081]
[1744862641277,11.6172,1586.5,1586.3,4.47811196]
[1744862641569,1.26091,1586.3,1586.0,5.47308]
[1744862641775,2.4683,1586.2,1586.0,1.26108]
[1744862641975,1.6431,1586.1,1586.0,1.26108]
[1744862642374,11.6431,1586.1,1586.0,1.26108]
[1744862642977,11.6431,1586.1,1585.9,8.38764056]
[1744862643181,6.11203,1586.0,1585.9,7.06454056]
[1744862643480,4.8509,1586.0,1585.9,7.06454056]
[1744862643669,19.8509,1586.0,1585.9,7.06454056]
[1744862644372,14.8509,1586.0,1585.9,8.32575056]
[1744862644970,11.6431,1586.0,1585.9,8.32575056]
[1744862646379,11.6431,1586.0,1585.9,1.27069196]
[1744862646567,12.4682,1586.0,1585.9,1.27069196]
[1744862657784,12.4682,1586.0,1585.9,0.00948196]
[1744862658585,12.4682,1586.0,1585.9,1.27069196]
[1744862660281,12.4682,1586.0,1585.9,2.96489196]
[1744862664287,2.4682,1586.0,1585.9,2.96489196]
[1744862664488,1.6431,1586.0,1585.9,2.96489196]
[1744862667389,11.6431,1586.0,1585.9,2.96489196]
[1744862670191,11.6431,1586.0,1585.9,1.27069196]
[1744862672889,1.6431,1586.0,1585.9,1.27069196]
[1744862673092,1.6431,1586.0,1585.9,2.92029196]
[1744862677700,0.848,1586.1,1586.0,1.26113]
[1744862677996,2.55448195,1586.2,1586.1,1.26105]
[1744862678397,2.55448195,1586.2,1586.1,5.47205]
[1744862679085,2.55448195,1586.2,1586.1,6.29665]
[1744862680395,2.55448195,1586.2,1586.1,8.05315]
[1744862681501,2.55448195,1586.2,1586.1,7.22855]
[1744862682705,12.55448195,1586.2,1586.1,5.47205]
[1744862689204,0.00948195,1586.2,1586.1,5.47205]
[1744862689411,0.00948195,1586.2,1586.1,6.34435]
[1744862689810,0.00948195,1586.2,1586.1,8.03395]
[1744862694628,0.00948195,1586.2,1586.1,5.47205]
[1744862706247,10.00948195,1586.2,1586.1,5.47205]
[1744862706947,11.70318195,1586.2,1586.1,5.47205]
[1744862717045,11.70318195,1586.2,1586.0,1.26111]
[1744862717348,1.26121,1585.9,1585.8,2.63775623]
[1744862717650,4.46901,1585.9,1585.8,2.63775623]
[1744862717853,9.46901,1585.9,1585.8,2.63775623]
[1744862718053,11.17881,1585.9,1585.8,2.63775623]
[1744862718554,11.17881,1585.9,1585.8,1.31435623]
[1744862718754,1.26129,1585.8,1585.7,16.8950774]
[1744862718956,2.12659,1585.8,1585.7,16.8950774]
[1744862719156,7.12659,1585.8,1585.7,16.8950774]
[1744862719458,13.11659,1585.8,1585.7,16.8950774]
[1744862720257,13.11659,1585.8,1585.7,0.00948196]
[1744862721855,13.99729,1585.8,1585.7,0.00948196]
[1744862722057,15.65989,1585.8,1585.7,0.00948196]
[1744862723156,10.65989,1585.8,1585.7,0.00948196]
[1744862723458,9.3986,1585.8,1585.7,1.27085196]
[1744862723956,15.64377497,1585.8,1585.7,1.27085196]
[1744862725753,9.65377497,1585.8,1585.7,1.27085196]
[1744862725952,6.24517497,1585.8,1585.7,1.27085196]
[1744862726447,7.99297497,1585.8,1585.7,2.95155196]
[1744862727757,7.99297497,1585.8,1585.7,0.00948196]
[1744862728259,1.7478,1585.8,1585.7,0.00948196]
[1744862732061,4.9556,1585.8,1585.7,0.00948196]
[1744862733067,6.21689,1585.8,1585.7,0.00948196]
[1744862740671,12.20689,1585.8,1585.7,1e-08]
[1744862740974,1.26161,1585.4,1585.3,1.26165]
[1744862741272,1.26161,1585.4,1585.3,1.25241145]
[1744862741470,4.46938,1585.5,1585.3,1.25241145]
[1744862741672,2.4961,1585.4,1585.3,1.25241145]
[1744862741968,3.75771,1585.4,1585.2,2.96631196]
[1744862742164,7.00429,1585.3,1585.2,2.96631196]
[1744862742566,5.7426,1585.3,1585.2,2.96631196]
[1744862742775,2.5348,1585.3,1585.2,2.96631196]
[1744862743973,5.7426,1585.3,1585.2,2.96631196]
[1744862748375,3.2078,1585.3,1585.2,2.96631196]
[1744862752881,1.5926,1585.4,1585.3,1.26169]
[1744862753081,4.8004,1585.4,1585.3,1.26169]
[1744862754181,10.36761,1585.6,1585.4,1.26154]
[1744862754384,12.00491,1585.6,1585.3,0.8802]
[1744862754687,2.89883,1585.5,1585.4,3.01857]
[1744862754876,6.10663,1585.5,1585.4,1.26157]
[1744862759383,6.10663,1585.5,1585.3,1.26162]
[1744862759586,1.6817,1585.4,1585.3,1.26162]
[1744862761494,4.8895,1585.4,1585.3,1.26162]
[1744862762390,1.6817,1585.4,1585.3,1.26162]
[1744862762890,4.8895,1585.4,1585.3,1.26162]
[1744862765295,1.6817,1585.4,1585.3,1.26162]
[1744862765792,4.8895,1585.4,1585.3,1.26162]
[1744862766092,6.15111,1585.4,1585.3,1.26162]
[1744862766889,1.26169,1585.3,1585.2,0.00948196]
[1744862767194,4.60379,1585.3,1585.2,0.00948196]
[1744862767886,4.60379,1585.3,1585.2,1.27125196]
[1744862769490,3.3421,1585.3,1585.2,1.27125196]
[1744862770693,4.60379,1585.3,1585.2,1.27125196]
[1744862771093,4.60379,1585.3,1585.2,0.00948196]
[1744862771780,3.15444,1585.2,1584.6,9.67877866]
[1744862771989,1.26216,1584.7,1584.6,8.41654866]
[1744862772382,9.64776,1584.7,1584.6,1.3395126]
[1744862773098,50.44776,1584.7,1584.6,1.3395126]
[1744862775599,56.43776,1584.7,1584.6,1.3395126]
[1744862777187,1.26224,1584.6,1584.5,0.00948196]
[1744862777497,3.15582,1584.5,1583.7,0.8131]
[1744862777697,4.47055,1584.0,1583.8,1.26285]
[1744862777901,1.745,1583.9,1583.8,1.26285]
[1744862778094,2.5834,1583.9,1583.8,1.26285]
[1744862779093,2.5834,1583.9,1583.8,2.88015]
[1744862779299,3.8462,1583.9,1583.7,0.00948196]
[1744862779687,3.2078,1583.8,1583.7,1.27238196]
[1744862779998,4.9528,1583.8,1583.7,0.00948196]
[1744862780201,4.9528,1583.8,1583.7,1.27244196]
[1744862781993,4.9528,1583.8,1583.7,0.00948196]
[1744862782201,4.9528,1583.8,1583.7,1.27244196]
[1744862782795,3.2078,1583.8,1583.7,1.27244196]
[1744862783400,3.2078,1583.8,1583.7,6.27244196]
[1744862786502,0.00948196,1584.0,1583.9,1.2628]
[1744862787004,0.00948196,1584.0,1583.9,6.2628]
[1744862787199,0.00948196,1584.0,1583.9,7.9072]
[1744862787399,0.00948196,1584.0,1583.9,9.6506]
[1744862789904,0.00948196,1584.0,1583.9,4.6506]
[1744862790303,0.00948196,1584.0,1583.9,1.2628]
[1744862790599,1.66808196,1584.0,1583.9,1.2628]
[1744862792599,2.51858196,1584.0,1583.9,1.2628]
[1744862795604,5.72638196,1584.0,1583.9,1.2628]
[1744862796709,5.72638196,1584.0,1583.9,2.9247]
[1744862796910,3.21728196,1584.0,1583.9,2.9247]
[1744862797108,3.21728196,1584.0,1583.9,3.7651]
[1744862802211,3.21728196,1584.0,1583.9,1.2628]
[1744862802509,4.06478196,1584.0,1583.9,1.2628]
[1744862803109,5.78428196,1584.0,1583.9,1.2628]
[1744862805710,2.57648196,1584.0,1583.9,1.2628]
[1744862805908,5.78428196,1584.0,1583.9,1.2628]
[1744862809014,3.21728196,1584.0,1583.9,6.2628]
[1744862809216,3.6492787,1584.9,1584.3,1.26248]
[1744862809217,3.2078,1584.4,1584.3,1.26248]
[1744862809712,3.4549,1584.6,1584.5,1.26232]
[1744862809713,6.6627,1584.6,1584.5,1.26232]
[1744862809908,5.7948,1584.6,1584.5,1.26232]
[1744862820923,3.2078,1584.6,1584.5,1.26232]
[1744862822818,5.6639,1584.6,1584.5,1.26232]
[1744862826828,6.92615,1584.6,1584.4,1.26235]
[1744862827025,1.26244,1584.4,1584.1,1.26258]
[1744862827227,5.6476,1584.3,1584.0,9.0638]
[1744862827419,2.4816,1584.2,1584.1,1.26258]
[1744862828228,1.26267,1584.1,1583.9,1.26278]
[1744862828429,4.0281,1584.0,1583.9,1.26278]
[1744862829031,5.6476,1584.0,1583.9,1.26278]